[Event "Ujir Singh Thapa Memorial 2080"]
[Site "Butwal"]
[Date "2024.04.08"]
[Round "6.4"]
[White "Harsh, Himanshu"]
[Black "Vipul Subhashi"]
[Result "0-1"]
[ECO "B42"]
[WhiteElo "1855"]
[BlackElo "1971"]
[Annotator "RC"]
[PlyCount "76"]
[EventDate "2024.04.03"]
[EventType "swiss"]
[EventCountry "NEP"]
[SourceTitle "playchess.com"]
[Source "ChessBase"]
[SourceQuality "1"]
[TimeControl "3600+30"]

1. e4 {[%emt 0:12:00]} c5 {[%emt 0:00:50]} 2. Nf3 {[%emt 0:00:10]} e6 {[%emt 0:00:14]} 3. d4 {[%emt 0:00:21]} cxd4 {[%emt 0:00:07]} 4. Nxd4 {[%emt 0:00:04]} a6 {[%emt 0:00:08]} 5. Bd3 {[%emt 0:00:28]} Qc7 {[%emt 0:00:58]} 6. O-O {[%emt 0:00:20]} Nf6 {[%emt 0:00:16]} 7. c4 {[%emt 0:01:30]} Bc5 {[%emt 0:00:52]} 8. Nb3 {[%emt 0:00:17]} Ba7 {[%emt 0:00:20]} 9. Qe2 {[%emt 0:00:06]} Nc6 {[%emt 0:00:29]} 10. Be3 {[%emt 0:00:11]} Bxe3 {[%emt 0:06:07]} 11. Qxe3 {[%emt 0:00:11]} Ne5 {[%emt 0:07:47]} 12. N1d2 {[%emt 0:00:13]} Nxd3 {[%emt 0:07:40]} 13. Qxd3 {[%emt 0:00:05]} b6 {[%emt 0:00:38]} 14. Qg3 {[%emt 0:02:29]} Qxg3 {[%emt 0:00:13]} 15. hxg3 {[%emt 0:00:02]} d6 {[%emt 0:00:10]} 16. a4 {[%emt 0:02:31]} Bb7 {[%emt 0:03:32]} 17. Rfe1 {[%emt 0:00:47]} a5 {[%emt 0:02:24]} 18. Nd4 {[%emt 0:00:08]} Ke7 {[%emt 0:00:44]} 19. f3 {[%emt 0:05:50]} Nd7 {[%emt 0:04:10]} 20. Kf2 {[%emt 0:05:05]} Rhc8 {[%emt 0:01:57]} 21. Ke3 {[%emt 0:05:36]} Ba6 {[%emt 0:01:46]} 22. Rec1 {[%emt 0:02:35]} Nc5 {[%emt 0:03:15]} 23. b3 {[%emt 0:03:46]} Bb7 {[%emt 0:01:15]} 24. Rh1 {[%emt 0:05:26]} h6 {[%emt 0:01:05]} 25. Rac1 {[%emt 0:01:03]} Nd7 {[%emt 0:03:24]} 26. Nb1 {[%emt 0:01:22]} Rc5 {[%emt 0:04:17]} 27. Nc3 {[%emt 0:02:11]} Rd8 {[%emt 0:01:32]} 28. Rhd1 Rg5 {[%emt 0:05:49]} 29. Kf2 {[%emt 0:08:52]} Nf6 {[%emt 0:02:16]} 30. Ncb5 {[%emt 0:03:12]} Rc5 {[%emt 0:01:41]} 31. Re1 {[%emt 0:03:41]} Nd7 {[%emt 0:05:38]} 32. Rcd1 {[%emt 0:01:03]} Ne5 {[%emt 0:00:15]} 33. Rd2 {[%emt 0:00:19]} g6 {[%emt 0:02:08]} 34. Nc3 {[%emt 0:03:53]} f5 {[%emt 0:00:30]} 35. exf5 {[%emt 0:00:30]} gxf5 {[%emt 0:00:30]} 36. Rh1 {[%emt 0:00:30]} Nf7 {[%emt 0:00:30]} 37. Nce2 {[%emt 0:00:30]} d5 {[%emt 0:00:30]} 38. cxd5 {[%emt 0:00:30]} Bxd5 {[%emt 0:00:30]} 0-1

[Event "Ujir Singh Thapa Memorial 2080"]
[Site "Butwal"]
[Date "2024.04.08"]
[Round "6.5"]
[White "Thapa, Krishna"]
[Black "Ashutosh, Kumar"]
[Result "1-0"]
[ECO "A32"]
[WhiteElo "1963"]
[BlackElo "1850"]
[Annotator "RC"]
[PlyCount "109"]
[EventDate "2024.04.03"]
[EventType "swiss"]
[EventCountry "NEP"]
[SourceTitle "playchess.com"]
[Source "ChessBase"]
[SourceQuality "1"]
[TimeControl "3600+30"]

1. d4 {[%emt 0:06:45]} Nf6 {[%emt 0:00:18]} 2. Nf3 {[%emt 0:00:06]} e6 {[%emt 0:01:41]} 3. g3 {[%emt 0:00:44]} c5 {[%emt 0:00:26]} 4. c4 {[%emt 0:00:36]} cxd4 {[%emt 0:03:56]} 5. Nxd4 {[%emt 0:00:45]} Nc6 {[%emt 0:00:27]} 6. Bg2 {[%emt 0:04:58]} Bb4+ {[%emt 0:01:09]} 7. Bd2 {[%emt 0:00:55]} Be7 {[%emt 0:00:34]} 8. Bc3 {[%emt 0:02:57]} O-O {[%emt 0:00:29]} 9. e4 {[%emt 0:01:48]} Qc7 {[%emt 0:02:45]} 10. O-O {[%emt 0:05:06]} d6 {[%emt 0:00:41]} 11. Na3 {[%emt 0:01:41]} a6 {[%emt 0:00:29]} 12. Nxc6 {[%emt 0:02:55]} bxc6 {[%emt 0:00:47]} 13. Nc2 {[%emt 0:00:05]} e5 {[%emt 0:03:32]} 14. Qd2 {[%emt 0:01:09]} a5 {[%emt 0:02:43]} 15. h3 {[%emt 0:03:21]} Nd7 {[%emt 0:01:33]} 16. Ne3 {[%emt 0:00:46]} Nc5 {[%emt 0:00:17]} 17. b3 {[%emt 0:02:50]} Be6 {[%emt 0:09:04]} 18. Rad1 {[%emt 0:01:45]} Rfd8 {[%emt 0:00:59]} 19. Kh2 {[%emt 0:01:43]} Bg5 {[%emt 0:05:27]} 20. Qe2 {[%emt 0:07:24]} Bxe3 {[%emt 0:01:45]} 21. Qxe3 {[%emt 0:00:41]} Na6 {[%emt 0:05:39]} 22. f4 {[%emt 0:04:09]} f6 {[%emt 0:00:05]} 23. Qd2 {[%emt 0:02:37]} Nc5 {[%emt 0:00:49]} 24. g4 {[%emt 0:04:00]} a4 {[%emt 0:02:39]} 25. b4 {[%emt 0:01:46]} Na6 {[%emt 0:00:22]} 26. b5 {[%emt 0:01:58]} Nc5 {[%emt 0:00:23]} 27. bxc6 {[%emt 0:00:37]} Bxc4 {[%emt 0:01:11]} 28. Rg1 {[%emt 0:01:41]} Nd3 {[%emt 0:01:44]} 29. Bf1 Qxc6 {[%emt 0:09:44]} 30. Bxd3 {[%emt 0:00:49]} Bf7 {[%emt 0:01:20]} 31. Ba5 {[%emt 0:02:42]} Rdb8 {[%emt 0:00:41]} 32. Rc1 {[%emt 0:00:59]} Qd7 {[%emt 0:02:07]} 33. Rc7 {[%emt 0:00:39]} Qe8 {[%emt 0:00:28]} 34. Rc2 {[%emt 0:04:13]} exf4 {[%emt 0:00:46]} 35. Bc7 {[%emt 0:00:14]} Qe5 {[%emt 0:01:41]} 36. Bxb8 {[%emt 0:01:15]} f3+ {[%emt 0:00:19]} 37. Rg3 {[%emt 0:00:23]} Rxb8 {[%emt 0:00:10]} 38. Qe3 {[%emt 0:00:22]} h5 {[%emt 0:00:25]} 39. gxh5 {[%emt 0:00:51]} Bxh5 {[%emt 0:00:23]} 40. Rf2 {[%emt 0:01:23]} d5 {[%emt 0:01:47]} 41. Qa7 {[%emt 0:00:37]} Bf7 {[%emt 0:01:23]} 42. exd5 {[%emt 0:00:26]} Rb2 {[%emt 0:01:24]} 43. Qa8+ {[%emt 0:00:40]} Be8 {[%emt 0:00:37]} 44. Qa7 {[%emt 0:00:34]} Bf7 {[%emt 0:00:28]} 45. d6 {[%emt 0:00:12]} Rb4 {[%emt 0:03:25]} 46. Bh7+ {[%emt 0:00:47]} Kf8 {[%emt 0:02:59]} 47. Qe7+ {[%emt 0:00:19]} Qxe7 {[%emt 0:00:13]} 48. dxe7+ {[%emt 0:00:01]} Kxe7 {[%emt 0:00:04]} 49. Rxg7 {[%emt 0:00:11]} Kf8 {[%emt 0:00:10]} 50. Rg4 {[%emt 0:00:14]} Rb5 {[%emt 0:00:41]} 51. Rxa4 {[%emt 0:00:31]} f5 {[%emt 0:00:20]} 52. Rxf3 {[%emt 0:00:51]} Be6 {[%emt 0:01:22]} 53. Bxf5 {[%emt 0:00:41]} Rb2+ {[%emt 0:00:09]} 54. Kg3 {[%emt 0:00:12]} Bxa2 {[%emt 0:01:24]} 55. Rxa2 {[%emt 0:00:09]} 1-0

[Event "Ujir Singh Thapa Memorial 2080"]
[Site "Butwal"]
[Date "2024.04.08"]
[Round "6.6"]
[White "Dileep, Tripathi"]
[Black "Maharjan, Suroj"]
[Result "0-1"]
[ECO "A70"]
[WhiteElo "1783"]
[BlackElo "1918"]
[Annotator "RC"]
[PlyCount "78"]
[EventDate "2024.04.03"]
[EventType "swiss"]
[EventCountry "NEP"]
[SourceTitle "playchess.com"]
[Source "ChessBase"]
[SourceQuality "1"]
[TimeControl "3600+30"]

1. d4 {[%emt 0:00:30]} Nf6 {[%emt 0:01:34]} 2. c4 {[%emt 0:00:12]} c5 {[%emt 0:00:34]} 3. d5 {[%emt 0:00:10]} d6 {[%emt 0:00:23]} 4. Nc3 {[%emt 0:00:14]} g6 {[%emt 0:02:47]} 5. e4 {[%emt 0:00:35]} Bg7 {[%emt 0:00:06]} 6. Bd3 {[%emt 0:00:45]} O-O {[%emt 0:00:42]} 7. h3 {[%emt 0:00:14]} e6 {[%emt 0:01:08]} 8. Nf3 {[%emt 0:00:38]} exd5 {[%emt 0:00:02]} 9. cxd5 {[%emt 0:00:02]} b5 {[%emt 0:07:46]} 10. Nxb5 {[%emt 0:10:57]} Nxe4 {[%emt 0:00:53]} 11. O-O {[%emt 0:01:11]} f5 {[%emt 0:05:08]} 12. Qc2 {[%emt 0:03:27]} Qb6 {[%emt 0:01:32]} 13. Na3 {[%emt 0:02:58]} Ba6 {[%emt 0:13:29]} 14. Bxa6 {[%emt 0:02:20]} Nxa6 {[%emt 0:00:34]} 15. Nc4 {[%emt 0:00:39]} Qb7 {[%emt 0:01:59]} 16. Rd1 {[%emt 0:15:37]} Nb4 {[%emt 0:02:45]} 17. Qb3 {[%emt 0:01:31]} a5 {[%emt 0:00:24]} 18. Ne3 {[%emt 0:03:47]} f4 {[%emt 0:08:59]} 19. Nf1 {[%emt 0:09:43]} Qb5 {[%emt 0:01:27]} 20. N1d2 {[%emt 0:02:40]} Nxd2 {[%emt 0:04:19]} 21. Rxd2 {[%emt 0:00:56]} c4 {[%emt 0:01:22]} 22. Qd1 {[%emt 0:00:37]} c3 23. Nd4 {[%emt 0:04:02]} Bxd4 {[%emt 0:01:43]} 24. Rxd4 {[%emt 0:00:42]} c2 {[%emt 0:00:17]} 25. Qd2 {[%emt 0:02:02]} Rae8 {[%emt 0:03:38]} 26. Rxf4 {[%emt 0:04:00]} Rxf4 {[%emt 0:00:43]} 27. Qxf4 {[%emt 0:00:02]} Qxd5 {[%emt 0:02:50]} 28. a3 {[%emt 0:01:55]} Nd3 {[%emt 0:00:19]} 29. Qd2 {[%emt 0:00:02]} Re1+ {[%emt 0:00:38]} 30. Kh2 {[%emt 0:00:01]} Qe5+ {[%emt 0:00:13]} 31. f4 {[%emt 0:00:20]} Qxf4+ {[%emt 0:00:32]} 32. Qxf4 {[%emt 0:00:14]} Nxf4 {[%emt 0:00:03]} 33. b4 {[%emt 0:01:19]} Nd3 {[%emt 0:01:40]} 34. bxa5 {[%emt 0:00:02]} Nc5 {[%emt 0:00:12]} 35. a6 {[%emt 0:00:36]} Nxa6 {[%emt 0:00:08]} 36. a4 {[%emt 0:00:07]} d5 {[%emt 0:00:07]} 37. a5 {[%emt 0:00:02]} d4 {[%emt 0:00:15]} 38. Ra4 {[%emt 0:00:28]} Rxc1 {[%emt 0:00:06]} 39. Rxd4 {[%emt 0:00:02]} Rd1 {[%emt 0:00:23]} 0-1

[Event "Ujir Singh Thapa Memorial 2080"]
[Site "Butwal"]
[Date "2024.04.08"]
[Round "6.7"]
[White "Divyanshu Kumar Singh"]
[Black "Chaulagain, Purushottam"]
[Result "*"]
[ECO "E04"]
[WhiteElo "1745"]
[BlackElo "1906"]
[Annotator "RC"]
[PlyCount "66"]
[EventDate "2024.04.03"]
[EventType "swiss"]
[EventCountry "NEP"]
[SourceTitle "playchess.com"]
[Source "ChessBase"]
[SourceQuality "1"]
[TimeControl "3600+30"]

1. d4 {[%emt 0:00:04]} d5 {[%emt 0:06:07]} 2. c4 {[%emt 0:00:02]} e6 {[%emt 0:00:04]} 3. Nf3 {[%emt 0:00:02]} c6 {[%emt 0:00:04]} 4. g3 {[%emt 0:00:16]} Nf6 {[%emt 0:00:23]} 5. Bg2 {[%emt 0:00:01]} dxc4 {[%emt 0:00:05]} 6. Ne5 {[%emt 0:00:44]} Nbd7 {[%emt 0:00:04]} 7. Nxc4 {[%emt 0:00:28]} Bb4+ {[%emt 0:00:47]} 8. Bd2 {[%emt 0:00:18]} Bxd2+ {[%emt 0:02:23]} 9. Nbxd2 {[%emt 0:00:33]} Nb6 {[%emt 0:00:39]} 10. e3 {[%emt 0:00:20]} O-O {[%emt 0:00:14]} 11. O-O {[%emt 0:00:03]} Qc7 {[%emt 0:01:38]} 12. Rc1 {[%emt 0:00:45]} Rd8 {[%emt 0:00:32]} 13. Qe2 {[%emt 0:03:00]} Bd7 {[%emt 0:02:36]} 14. e4 {[%emt 0:02:37]} Be8 {[%emt 0:01:08]} 15. e5 {[%emt 0:00:52]} Nfd5 {[%emt 0:02:33]} 16. Nd6 {[%emt 0:01:21]} Qe7 {[%emt 0:02:09]} 17. f4 {[%emt 0:02:24]} f5 {[%emt 0:02:18]} 18. g4 {[%emt 0:17:58]} fxg4 {[%emt 0:15:45]} 19. f5 {[%emt 0:02:20]} Bh5 {[%emt 0:00:17]} 20. fxe6 {[%emt 0:03:47]} Rab8 {[%emt 0:05:38]} 21. N2e4 {[%emt 0:01:45]} Qxe6 {[%emt 0:02:22]} 22. Nc5 {[%emt 0:01:16]} Qe7 {[%emt 0:01:48]} 23. Nf5 {[%emt 0:01:22]} Qe8 {[%emt 0:04:28]} 24. Qd2 {[%emt 0:00:50]} Ne7 {[%emt 0:04:46]} 25. Nd6 {[%emt 0:02:27]} Qg6 {[%emt 0:05:25]} 26. Be4 {[%emt 0:00:04]} Qh6 {[%emt 0:01:22]} 27. Qxh6 {[%emt 0:00:03]} gxh6 {[%emt 0:00:03]} 28. Ncxb7 {[%emt 0:01:12]} Rd7 {[%emt 0:03:32]} 29. Nc5 {[%emt 0:00:54]} Rdd8 {[%emt 0:00:22]} 30. Ne6 Rd7 31. Bxc6 {[%emt 0:01:40]} Nxc6 {[%emt 0:00:21]} 32. Rxc6 {[%emt 0:00:03]} Bg6 {[%emt 0:00:38]} 33. Rfc1 {[%emt 0:03:07]} Re7 {[%emt 0:01:05]} *

[Event "Ujir Singh Thapa Memorial 2080"]
[Site "Butwal"]
[Date "2024.04.08"]
[Round "7.1"]
[White "Sinha, Sudhir Kumar"]
[Black "Jaiswal, Rupesh"]
[Result "1/2-1/2"]
[ECO "B26"]
[WhiteElo "1968"]
[BlackElo "1969"]
[Annotator "RC"]
[PlyCount "47"]
[EventDate "2024.04.03"]
[EventType "swiss"]
[EventCountry "NEP"]
[SourceTitle "playchess.com"]
[Source "ChessBase"]
[SourceQuality "1"]
[TimeControl "3600+30"]

1. e4 {[%emt 0:09:20]} c5 {[%emt 0:00:03]} 2. Nc3 {[%emt 0:00:32]} d6 {[%emt 0:00:03]} 3. g3 {[%emt 0:01:53]} g6 {[%emt 0:00:04]} 4. Bg2 {[%emt 0:00:25]} Bg7 {[%emt 0:00:01]} 5. d3 {[%emt 0:00:11]} Nc6 {[%emt 0:00:01]} 6. Be3 {[%emt 0:00:15]} Rb8 {[%emt 0:00:11]} 7. Qd2 {[%emt 0:00:32]} b5 {[%emt 0:00:54]} 8. Nge2 {[%emt 0:00:18]} Nd4 {[%emt 0:00:15]} 9. O-O {[%emt 0:00:45]} h5 {[%emt 0:01:16]} 10. h3 {[%emt 0:03:19]} e6 {[%emt 0:00:50]} 11. Nd1 {[%emt 0:01:15]} Nxe2+ {[%emt 0:00:17]} 12. Qxe2 {[%emt 0:00:16]} Ne7 {[%emt 0:00:02]} 13. c3 {[%emt 0:01:08]} b4 {[%emt 0:03:50]} 14. Qd2 {[%emt 0:05:11]} a5 {[%emt 0:05:07]} 15. Rc1 {[%emt 0:01:40]} Ba6 {[%emt 0:00:48]} 16. f4 {[%emt 0:06:28]} bxc3 {[%emt 0:02:08]} 17. bxc3 {[%emt 0:00:27]} O-O {[%emt 0:00:02]} 18. g4 {[%emt 0:03:59]} hxg4 {[%emt 0:01:02]} 19. hxg4 {[%emt 0:00:20]} f5 {[%emt 0:00:23]} 20. Rf3 {[%emt 0:01:07]} c4 {[%emt 0:03:35]} 21. gxf5 {[%emt 0:01:36]} gxf5 22. Rg3 {[%emt 0:00:43]} cxd3 {[%emt 0:09:15]} 23. Bd4 {[%emt 0:03:48]} Rf7 {[%emt 0:00:17]} 24. Ne3 {[%emt 0:01:00]} 1/2-1/2

[Event "Ujir Singh Thapa Memorial 2080"]
[Site "Butwal"]
[Date "2024.04.08"]
[Round "7.2"]
[White "Vipul Subhashi"]
[Black "Tamang, Sudip"]
[Result "1/2-1/2"]
[ECO "C54"]
[WhiteElo "1971"]
[BlackElo "1916"]
[Annotator "RC"]
[PlyCount "38"]
[EventDate "2024.04.03"]
[EventType "swiss"]
[EventCountry "NEP"]
[SourceTitle "playchess.com"]
[Source "ChessBase"]
[SourceQuality "1"]
[TimeControl "3600+30"]

1. e4 {[%emt 0:08:29]} e5 {[%emt 0:00:07]} 2. Nf3 {[%emt 0:00:11]} Nc6 {[%emt 0:00:06]} 3. Bc4 {[%emt 0:00:12]} Nf6 {[%emt 0:00:06]} 4. d3 {[%emt 0:00:20]} Bc5 {[%emt 0:00:10]} 5. c3 {[%emt 0:00:30]} d6 {[%emt 0:00:13]} 6. O-O {[%emt 0:00:30]} a5 {[%emt 0:00:56]} 7. d4 {[%emt 0:03:29]} Ba7 {[%emt 0:01:37]} 8. dxe5 {[%emt 0:01:22]} Nxe5 {[%emt 0:02:08]} 9. Nxe5 {[%emt 0:07:09]} dxe5 {[%emt 0:00:06]} 10. Qf3 {[%emt 0:01:42]} Qe7 {[%emt 0:06:15]} 11. Be3 {[%emt 0:03:01]} Bxe3 {[%emt 0:03:53]} 12. Qxe3 {[%emt 0:00:28]} O-O {[%emt 0:00:32]} 13. Nd2 {[%emt 0:01:15]} Be6 {[%emt 0:01:00]} 14. Rfe1 {[%emt 0:02:37]} Rfe8 {[%emt 0:03:54]} 15. Bxe6 {[%emt 0:05:14]} Qxe6 {[%emt 0:00:09]} 16. Nf1 {[%emt 0:01:49]} Red8 {[%emt 0:03:35]} 17. Ng3 {[%emt 0:02:07]} Ng4 {[%emt 0:05:54]} 18. Qe2 {[%emt 0:01:49]} g6 {[%emt 0:00:44]} 19. h3 {[%emt 0:01:15]} Nf6 {[%emt 0:00:20]} 1/2-1/2

[Event "Ujir Singh Thapa Memorial 2080"]
[Site "Butwal"]
[Date "2024.04.08"]
[Round "7.3"]
[White "Maharjan, Suroj"]
[Black "Thapa, Krishna"]
[Result "1/2-1/2"]
[ECO "E61"]
[WhiteElo "1918"]
[BlackElo "1963"]
[Annotator "RC"]
[PlyCount "47"]
[EventDate "2024.04.03"]
[EventType "swiss"]
[EventCountry "NEP"]
[SourceTitle "playchess.com"]
[Source "ChessBase"]
[SourceQuality "1"]
[TimeControl "3600+30"]

1. c4 {[%emt 0:00:30]} c5 {[%emt 0:03:32]} 2. Nc3 {[%emt 0:00:25]} Nf6 {[%emt 0:00:10]} 3. g3 {[%emt 0:00:40]} g6 {[%emt 0:00:11]} 4. Bg2 {[%emt 0:00:11]} Bg7 {[%emt 0:00:11]} 5. e3 {[%emt 0:00:26]} Nc6 {[%emt 0:02:18]} 6. d4 {[%emt 0:00:47]} cxd4 {[%emt 0:01:32]} 7. exd4 {[%emt 0:00:10]} d6 {[%emt 0:00:15]} 8. h3 {[%emt 0:04:35]} O-O {[%emt 0:01:16]} 9. Nge2 {[%emt 0:00:08]} Bf5 {[%emt 0:08:37]} 10. O-O {[%emt 0:05:47]} Qc8 {[%emt 0:02:44]} 11. g4 {[%emt 0:02:41]} Bd7 {[%emt 0:02:52]} 12. Be3 {[%emt 0:02:01]} h5 {[%emt 0:02:42]} 13. g5 {[%emt 0:02:10]} Nh7 {[%emt 0:00:28]} 14. Kh2 {[%emt 0:00:59]} e5 {[%emt 0:01:31]} 15. d5 {[%emt 0:02:35]} Nd4 {[%emt 0:03:38]} 16. b3 {[%emt 0:01:47]} h4 {[%emt 0:06:42]} 17. Nxd4 {[%emt 0:01:16]} exd4 18. Bxd4 {[%emt 0:00:30]} Nxg5 {[%emt 0:03:34]} 19. Bxg7 {[%emt 0:00:52]} Kxg7 {[%emt 0:00:02]} 20. Qd3 Re8 21. f4 Nh7 22. Ne2 Qc7 23. Qd4+ Kg8 24. Rae1 {[%emt 0:05:53]} 1/2-1/2

[Event "Ujir Singh Thapa Memorial 2080"]
[Site "Butwal"]
[Date "2024.04.08"]
[Round "7.4"]
[White "Rishabh Nishad"]
[Black "Divyanshu Kumar Singh"]
[Result "1-0"]
[ECO "B12"]
[WhiteElo "1953"]
[BlackElo "1745"]
[Annotator "RC"]
[PlyCount "49"]
[EventDate "2024.04.03"]
[EventType "swiss"]
[EventCountry "NEP"]
[SourceTitle "playchess.com"]
[Source "ChessBase"]
[SourceQuality "1"]
[TimeControl "3600+30"]

1. e4 {[%emt 0:00:02]} c6 {[%emt 0:01:42]} 2. d4 {[%emt 0:00:55]} d5 {[%emt 0:00:02]} 3. e5 {[%emt 0:00:59]} c5 {[%emt 0:00:02]} 4. Nf3 {[%emt 0:01:09]} Nc6 {[%emt 0:00:15]} 5. dxc5 {[%emt 0:02:18]} Bg4 {[%emt 0:00:03]} 6. Bb5 {[%emt 0:04:31]} e6 {[%emt 0:00:28]} 7. b4 {[%emt 0:07:12]} Nge7 {[%emt 0:00:29]} 8. O-O {[%emt 0:00:34]} a6 {[%emt 0:00:16]} 9. Ba4 {[%emt 0:03:42]} Qc7 {[%emt 0:02:34]} 10. Re1 {[%emt 0:03:44]} Ng6 {[%emt 0:00:24]} 11. h3 {[%emt 0:01:15]} Bf5 {[%emt 0:04:40]} 12. Nd4 {[%emt 0:01:04]} O-O-O {[%emt 0:03:00]} 13. Bxc6 {[%emt 0:00:54]} bxc6 {[%emt 0:00:03]} 14. Nxf5 {[%emt 0:00:10]} exf5 {[%emt 0:00:04]} 15. Qd3 {[%emt 0:01:16]} Kb7 {[%emt 0:01:03]} 16. Qxf5 {[%emt 0:00:35]} Be7 {[%emt 0:00:03]} 17. Nd2 {[%emt 0:01:17]} Nh4 {[%emt 0:02:16]} 18. Qd3 {[%emt 0:00:35]} f5 {[%emt 0:00:57]} 19. Nb3 {[%emt 0:02:27]} g5 {[%emt 0:00:37]} 20. Nd4 {[%emt 0:01:36]} Qc8 {[%emt 0:04:46]} 21. g3 {[%emt 0:00:36]} Ng6 {[%emt 0:01:02]} 22. Qxf5 {[%emt 0:00:37]} Qb8 {[%emt 0:00:41]} 23. Bxg5 Rhf8 {[%emt 0:03:52]} 24. Bf6 {[%emt 0:03:38]} Nxe5 {[%emt 0:01:40]} 25. Bxe5 {[%emt 0:00:58]} 1-0

[Event "Ujir Singh Thapa Memorial 2080"]
[Site "Butwal"]
[Date "2024.04.08"]
[Round "7.5"]
[White "Maharjan, Sajin"]
[Black "Vinayak Singh Yadav"]
[Result "1-0"]
[ECO "B23"]
[WhiteElo "1930"]
[BlackElo "1748"]
[Annotator "RC"]
[PlyCount "51"]
[EventDate "2024.04.03"]
[EventType "swiss"]
[EventCountry "NEP"]
[SourceTitle "playchess.com"]
[Source "ChessBase"]
[SourceQuality "1"]
[TimeControl "3600+30"]

1. e4 {[%emt 0:00:30]} c5 {[%emt 0:02:14]} 2. Nc3 {[%emt 0:00:00]} Nc6 {[%emt 0:00:33]} 3. f4 {[%emt 0:00:00]} e6 {[%emt 0:00:25]} 4. Nf3 d5 {[%emt 0:00:05]} 5. Bb5 {[%emt 0:00:52]} d4 {[%emt 0:02:20]} 6. Bxc6+ {[%emt 0:01:21]} bxc6 {[%emt 0:00:17]} 7. Nb1 {[%emt 0:00:31]} Nf6 {[%emt 0:00:18]} 8. d3 {[%emt 0:01:56]} Be7 {[%emt 0:02:05]} 9. Nbd2 {[%emt 0:04:46]} Ba6 {[%emt 0:01:03]} 10. Ne5 {[%emt 0:10:45]} Bd6 {[%emt 0:04:31]} 11. Ndc4 {[%emt 0:05:04]} Bxe5 {[%emt 0:01:12]} 12. Nxe5 {[%emt 0:00:25]} Qc7 {[%emt 0:02:43]} 13. b3 {[%emt 0:00:34]} Nd7 {[%emt 0:02:12]} 14. Nxd7 {[%emt 0:04:52]} Qxd7 {[%emt 0:02:20]} 15. Qh5 {[%emt 0:00:29]} Qd6 {[%emt 0:00:49]} 16. Ba3 {[%emt 0:01:04]} Qxf4 {[%emt 0:01:23]} 17. Qxc5 {[%emt 0:00:24]} Qc7 {[%emt 0:01:07]} 18. Qxd4 {[%emt 0:02:36]} f6 {[%emt 0:01:01]} 19. O-O-O Kf7 {[%emt 0:01:02]} 20. g4 {[%emt 0:07:19]} Rad8 {[%emt 0:05:22]} 21. Qf2 {[%emt 0:08:30]} h6 {[%emt 0:00:30]} 22. h4 {[%emt 0:00:30]} Qb6 {[%emt 0:00:30]} 23. Bc5 {[%emt 0:00:30]} Qc7 {[%emt 0:00:30]} 24. Kb2 {[%emt 0:00:30]} Qe5+ {[%emt 0:19:05]} 25. Kb1 {[%emt 0:04:18]} Qd4 {[%emt 0:09:17]} 26. Qf3 {[%emt 0:05:27]} 1-0

[Event "Ujir Singh Thapa Memorial 2080"]
[Site "Butwal"]
[Date "2024.04.08"]
[Round "7.6"]
[White "Prakhar Tripathi"]
[Black "Silwal, Purushottam"]
[Result "0-1"]
[ECO "B26"]
[WhiteElo "1599"]
[BlackElo "1932"]
[Annotator "RC"]
[PlyCount "58"]
[EventDate "2024.04.03"]
[EventType "swiss"]
[EventCountry "NEP"]
[SourceTitle "playchess.com"]
[Source "ChessBase"]
[SourceQuality "1"]
[TimeControl "3600+30"]

1. e4 {[%emt 0:00:02]} c5 {[%emt 0:03:42]} 2. Nc3 {[%emt 0:00:05]} Nc6 {[%emt 0:00:18]} 3. g3 {[%emt 0:00:03]} g6 {[%emt 0:00:06]} 4. Bg2 {[%emt 0:00:03]} Bg7 {[%emt 0:00:07]} 5. d3 {[%emt 0:00:03]} d6 {[%emt 0:00:28]} 6. Be3 {[%emt 0:00:06]} e5 {[%emt 0:00:50]} 7. Qd2 {[%emt 0:00:07]} Be6 {[%emt 0:00:47]} 8. Nge2 {[%emt 0:00:23]} Nd4 {[%emt 0:00:58]} 9. a4 {[%emt 0:00:45]} Ne7 {[%emt 0:00:19]} 10. h3 {[%emt 0:02:56]} O-O {[%emt 0:05:08]} 11. f4 {[%emt 0:00:18]} f5 {[%emt 0:01:56]} 12. O-O {[%emt 0:00:39]} Qd7 {[%emt 0:00:25]} 13. Kh2 {[%emt 0:00:27]} Rab8 {[%emt 0:01:06]} 14. b3 {[%emt 0:06:08]} a6 {[%emt 0:02:31]} 15. Ra2 {[%emt 0:04:49]} b5 {[%emt 0:07:43]} 16. axb5 {[%emt 0:05:29]} axb5 {[%emt 0:00:54]} 17. fxe5 {[%emt 0:02:52]} dxe5 {[%emt 0:00:44]} 18. Bxd4 {[%emt 0:05:12]} cxd4 {[%emt 0:06:12]} 19. Nd1 {[%emt 0:01:07]} f4 {[%emt 0:01:31]} 20. g4 {[%emt 0:05:42]} g5 {[%emt 0:01:13]} 21. Ng1 {[%emt 0:13:27]} h5 {[%emt 0:00:30]} 22. gxh5 {[%emt 0:00:30]} g4 {[%emt 0:00:30]} 23. hxg4 {[%emt 0:00:30]} Bxg4 {[%emt 0:00:30]} 24. Bh3 {[%emt 0:00:30]} Bxh3 {[%emt 0:00:30]} 25. Nxh3 {[%emt 0:00:30]} Qg4 {[%emt 0:00:30]} 26. Rg1 {[%emt 0:00:30]} Qxh5 {[%emt 0:00:30]} 27. Ra7 {[%emt 0:00:30]} Qh7 {[%emt 0:00:30]} 28. Qg2 {[%emt 0:00:30]} Rb6 {[%emt 0:00:30]} 29. Qg4 {[%emt 0:00:30]} Rf7 {[%emt 0:12:27]} 0-1

[Event "Ujir Singh Thapa Memorial 2080"]
[Site "Butwal"]
[Date "2024.04.08"]
[Round "7.7"]
[White "Regmi, Shikhar"]
[Black "Jamal Uddin"]
[Result "0-1"]
[ECO "D16"]
[WhiteElo "1731"]
[BlackElo "1989"]
[Annotator "RC"]
[PlyCount "67"]
[EventDate "2024.04.03"]
[EventType "swiss"]
[EventCountry "NEP"]
[SourceTitle "playchess.com"]
[Source "ChessBase"]
[SourceQuality "1"]
[TimeControl "3600+30"]

1. d4 {[%emt 0:02:39]} d5 {[%emt 0:01:02]} 2. Nf3 {[%emt 0:00:21]} Nf6 {[%emt 0:00:34]} 3. c4 {[%emt 0:00:19]} c6 {[%emt 0:00:28]} 4. Nc3 {[%emt 0:00:44]} dxc4 {[%emt 0:00:35]} 5. a4 {[%emt 0:00:21]} Bf5 {[%emt 0:00:46]} 6. e3 {[%emt 0:00:30]} Na6 {[%emt 0:01:26]} 7. Nh4 {[%emt 0:04:22]} Bg4 {[%emt 0:01:37]} 8. Nf3 {[%emt 0:00:57]} e6 {[%emt 0:00:41]} 9. Bxc4 {[%emt 0:00:45]} Nb4 {[%emt 0:00:28]} 10. O-O {[%emt 0:01:34]} Bf5 {[%emt 0:01:39]} 11. Ne1 {[%emt 0:01:55]} Bg6 {[%emt 0:00:56]} 12. Nd3 {[%emt 0:00:49]} a5 {[%emt 0:01:19]} 13. Nxb4 {[%emt 0:00:51]} axb4 {[%emt 0:00:11]} 14. Ne2 {[%emt 0:00:39]} Bd6 {[%emt 0:01:09]} 15. Ng3 {[%emt 0:01:30]} Qc7 {[%emt 0:01:16]} 16. Bd3 {[%emt 0:01:26]} Bxd3 {[%emt 0:00:43]} 17. Qxd3 {[%emt 0:00:09]} h5 {[%emt 0:00:19]} 18. e4 {[%emt 0:00:57]} h4 {[%emt 0:00:36]} 19. e5 {[%emt 0:00:24]} hxg3 {[%emt 0:00:29]} 20. exd6 {[%emt 0:00:52]} gxh2+ {[%emt 0:00:12]} 21. Kh1 {[%emt 0:00:14]} Qxd6 {[%emt 0:00:12]} 22. Bg5 {[%emt 0:00:42]} Nd5 {[%emt 0:00:55]} 23. a5 {[%emt 0:02:13]} Nc7 {[%emt 0:02:09]} 24. Rfe1 {[%emt 0:02:28]} Nb5 {[%emt 0:00:34]} 25. Re4 {[%emt 0:02:29]} Rh5 {[%emt 0:04:01]} 26. Bf4 {[%emt 0:02:06]} Qd7 {[%emt 0:00:41]} 27. Qd2 {[%emt 0:02:34]} Rd5 {[%emt 0:03:08]} 28. Qxb4 {[%emt 0:01:26]} Nxd4 {[%emt 0:00:54]} 29. Qc4 Nf5 {[%emt 0:02:53]} 30. b4 {[%emt 0:04:28]} Rd1+ {[%emt 0:01:05]} 31. Re1 {[%emt 0:00:20]} Rd4 {[%emt 0:00:20]} 32. Qc1 {[%emt 0:00:52]} Rxb4 {[%emt 0:00:33]} 33. Bxh2 {[%emt 0:00:16]} Rb5 {[%emt 0:07:36]} 34. Rd1 {[%emt 0:00:30]} 0-1